Cogmind - Beta 17 *** ADVENTURER MODE // 2026.08.24 @ 19:59:41 Player: Tuja Result: Destroyed by Striker with Plasma Lance Performance ------------- Evolutions (8) 4000 Regions Visited (20) 4000 Robots Destroyed (218) 1090 Value Destroyed (13235) 13235 Prototype IDs (24) 480 Alien Tech Used (11) 2200 Bonus (19906) 19906 TOTAL SCORE: 44911 Bonus ------- Triggered Max Security 1000 High Alert Combat Kills 1912 Follower Combat Kills 5990 Met Zhirov 300 Built Enhanced Grunts 300 A7 Reached Mainframe 300 Met R17 at Cetus 500 Used Core Reset Matrix 3000 Met R17 at Research 2000 Scanned by Researcher 500 Met Sigix 2000 Activated Exoskeleton 3000 Friendly Fire -896 Cogmind --------- Core Integrity 0/1450 Matter 248/300 Energy 350/350 System Corruption 70% Temperature Cool (0) Movement Core (350) Ox6 +NEM 1 Location -2/Section 7 Parts ------- > --- POWER (1) -------- (None) > --- PROPULSION (4) --- (None) > --- UTILITY (14) ----- Advanced Salvage Targeting Computer Advanced Target Analyzer Improved Power Shielding Advanced System Shield Advanced System Shield > --- WEAPON (4) ------- Phase Gun Phase Gun Heavy Machine Gun > --- INVENTORY (5) ---- Myomer Leg Enhanced Biometal Leg Gravity Flail Peak State ------------ > --- POWER ------------ Matter Drive > --- PROPULSION ------- Biometal Medium Treads Biometal Medium Treads Centrium Heavy Treads > --- UTILITY ---------- Advanced Heat Sink Advanced Heat Sink Large Storage Unit Machine Analyzer Experimental Sensor Array Improved Signal Interpreter Experimental Utility Shielding Centrium Medium Armor Plating Centrium Medium Armor Plating Centrium Medium Armor Plating Hacking Suite Advanced System Shield > --- WEAPON ----------- Dispersion Rifle Advanced KE Penetrator Advanced KE Penetrator Linear Accelerator > --- INVENTORY -------- Centrium Heavy Treads Large Matter Pod Core Analyzer Graphene Brace Advanced Force Field Phasing AFG Transdimensional Reconstructor Improved Grenade Launcher Sigix Terminator Improved Remote Datajack RU-N14's Throwing Claymores RU-N14's Throwing Claymores Heavy Mace [Rating: 158] Favorites ----------- Power Light Ion Engine Engine Light Ion Engine Power Core Improved Fusion Compressor Reactor Reinforced Antimatter Reactor Propulsion Centrium Heavy Treads Treads Centrium Heavy Treads Leg Enhanced Biometal Leg Wheel Compact Wheel Flight Unit Field Propulsion Array Utility Centrium Medium Armor Plating Device Advanced Heat Sink Storage Large Storage Unit Processor Improved Signal Interpreter Hackware Hacking Suite Protection Centrium Medium Armor Plating Artifact Phase Redirector Weapon Advanced KE Penetrator Energy Gun Heavy Beamcaster Energy Cannon Compact Ion Cannon Ballistic Gun Advanced KE Penetrator Ballistic Cannon Magnetic Acceleration Cannon Launcher Improved Grenade Launcher Special Weapon Enhanced Flamer Impact Weapon Gravity Flail Special Melee Weapon Datajack Build | -11 -10 -10 -9 -9 -7 -6 -6 -5 -5 -5 -4 -4 -4 -4 -3 -3 -3 -2 -2 -2 ------- Run | Yrd Mat Min Mat Min Zio Pro Fac Fac Ext Cet Fac Upp Upp Zhi Pro Res Qua Res Tes Sec Slots Evolved 16 | . . . 2 . . . 6 2 . . 2 . . . . 2 . 2 . . Power . | . . . . . . . . . . . . . . . . . . . . . Propulsion 2 | . . . . . . . 2 . . . . . . . . . . . . . Utility 12 | . . . 2 . . . 3 1 . . 2 . . . . 2 . 2 . . Weapon 2 | . . . . . . . 1 1 . . . . . . . . . . . . Parts Attached 183 | 6 3 1 1 . 2 3 15 1 17 6 3 1 1 2 3 5 16 33 32 32 Power 13 | 1 . . . . . . 1 . 3 . . . . . 2 . 1 3 2 . Engine 4 | 1 . . . . . . 1 . 2 . . . . . . . . . . . Core 1 | . . . . . . . . . 1 . . . . . . . . . . . Reactor 8 | . . . . . . . . . . . . . . . 2 . 1 3 2 . Propulsion 38 | 2 . . . . . 1 3 . 7 2 . . . . . 1 3 7 5 7 Treads 27 | 2 . . . . . 1 1 . 7 2 . . . . . 1 3 5 1 4 Leg 8 | . . . . . . . . . . . . . . . . . . 1 4 3 Wheel 2 | . . . . . . . 2 . . . . . . . . . . . . . Hover . | . . . . . . . . . . . . . . . . . . . . . Flight 1 | . . . . . . . . . . . . . . . . . . 1 . . Utility 82 | 1 3 1 1 . 1 . 7 1 3 2 3 1 . 2 . 1 7 17 18 13 Device 26 | . . . . . . . 4 . . . . 1 . . . 1 2 8 8 2 Storage 11 | 1 2 . . . . . . . . . . . . . . . 2 2 4 . Processor 14 | . . . . . 1 . 1 . . . 1 . . . . . 1 7 2 1 Hackware 6 | . . . 1 . . . . . 1 . . . . 1 . . . . 1 2 Protection 24 | . 1 1 . . . . 2 1 2 2 2 . . 1 . . 1 . 3 8 Artifact 1 | . . . . . . . . . . . . . . . . . 1 . . . Weapon 50 | 2 . . . . 1 2 4 . 4 2 . . 1 . 1 3 5 6 7 12 Energy Gun 12 | . . . . . . 1 1 . . . . . 1 . . . . 2 1 6 Energy Cannon 1 | . . . . . . . 1 . . . . . . . . . . . . . Ballistic Gun 19 | 2 . . . . 1 . 1 . 2 2 . . . . 1 . 1 3 3 3 Ballistic Cannon 5 | . . . . . . . . . 1 . . . . . . 1 2 . 1 . Launcher 2 | . . . . . . 1 . . . . . . . . . . . 1 . . Special Weapon 4 | . . . . . . . 1 . . . . . . . . 1 2 . . . Impact Weapon 6 | . . . . . . . . . . . . . . . . 1 . . 2 3 Slashing Weapon . | . . . . . . . . . . . . . . . . . . . . . Piercing Weapon . | . . . . . . . . . . . . . . . . . . . . . Special Melee Weapon 1 | . . . . . . . . . 1 . . . . . . . . . . . Unidentified Prototypes 20 | . . . . . . . 3 . . 3 . . . 2 . . 5 . 5 2 Corrupted Parts 6 | . . . . . . . . . 1 . . . . . . . . . . 5 System Corruption 20 | . . . . . . . . . 2 . . . . . . . . . . 18 Parts Lost 94 | . . . . . . 3 2 . 2 1 . 1 . . 1 . 8 30 20 26 Power 5 | . . . . . . . . . . . . . . . . . . 3 1 1 Propulsion 12 | . . . . . . 1 . . . . . . . . . . 1 4 1 5 Utility 51 | . . . . . . 1 . . 2 . . 1 . . . . 4 16 15 12 Weapon 26 | . . . . . . 1 2 . . 1 . . . . 1 . 3 7 3 8 Highest Loss Streak 12 | . . . . . . 3 1 . 2 1 . 1 . . 1 . 1 8 12 8 To Critical Strikes 1 | . . . . . . . . . . . . . . . . . . 1 . . Average Backups 11 | 2 7 14 15 14 14 14 13 15 14 14 13 14 14 14 12 13 12 7 3 2 Power . | . 1 1 1 1 1 1 1 1 . . 1 1 1 1 . . . . . . Propulsion 1 | 1 4 5 6 4 3 2 . . . 1 1 1 1 1 1 1 . . 1 1 Utility 3 | . . 3 4 4 3 3 4 5 5 5 3 3 3 3 3 4 5 3 . . Weapon 5 | . 1 3 3 3 5 6 6 7 7 6 6 7 8 7 6 6 5 2 1 . Tool/Special . | . . . . . . . . . . . . . . . . . . . . . Unused Backups 20 | . . . . 3 5 . 1 . 3 1 1 . . . . . 2 1 2 1 Power 1 | . . . . . . . . . 1 . . . . . . . . . . . Propulsion 6 | . . . . 2 1 . . . . . . . . . . . 1 . 1 1 Utility 4 | . . . . 1 . . . . 1 . 1 . . . . . . 1 . . Weapon 9 | . . . . . 4 . 1 . 1 1 . . . . . . 1 . 1 . Tool/Special . | . . . . . . . . . . . . . . . . . . . . . Average Slot Usage (%) 86 | . 87 100 86 88 97 96 86 88 97 93 88 88 89 89 88 89 92 56 73 75 Engine 4 | . 14 14 11 11 11 11 6 5 5 5 5 5 5 5 . . . . . . Reactor 1 | . . . . . . . . . . . . . . . 3 4 4 3 3 3 Treads 13 | . 28 28 22 22 22 21 13 5 19 16 10 10 10 10 10 9 12 5 5 1 Leg 1 | . . . . . . . . . . . . . . . . . . . 5 10 Device 9 | . . . . . . . 8 11 10 11 9 9 10 10 5 13 16 13 15 11 Storage 6 | . 14 14 11 11 11 11 6 5 5 5 5 5 5 5 5 4 6 3 7 . Processor 8 | . . . . . 8 11 8 11 5 5 9 10 10 10 10 9 9 12 15 7 Hackware 7 | . . . 9 11 11 11 6 5 6 11 10 10 10 10 10 9 9 3 . 10 Protection 11 | . 2 14 11 11 11 11 7 9 15 11 15 15 15 15 20 19 12 1 3 14 Energy Gun 2 | . . . . . . 2 6 6 8 3 . . 3 5 5 3 1 1 2 . Ballistic Gun 10 | . 28 28 22 22 22 16 5 5 10 10 10 10 10 10 9 9 8 3 7 . Ballistic Cannon 2 | . . . . . . . . . 1 5 5 5 5 5 4 4 5 5 . 2 Impact Weapon 1 | . . . . . . . . . . . . . . . . . . . 3 9 Peak Build Rating 158 | 6 8 8 11 12 24 25 65 69 74 118 130 131 132 136 137 149 158 146 150 154 Average Rating 90 | 4 6 8 10 11 18 23 47 65 69 102 129 130 131 132 134 142 142 99 123 130 On Entrance 75 | . 6 8 8 11 12 24 24 62 69 74 118 130 131 132 133 135 142 133 113 119 Avg Prop Armor Cover (%) 4 | . . . . . . . 6 5 4 . . . . . . . 9 . . 1 Naked Turns . | . . . . . . . . . . . . . . . . . . . . . Heaviest Build 105 | 11 29 29 27 27 30 31 47 55 83 77 89 83 84 84 93 99 99 105 75 81 Greatest Support 160 | 40 40 40 40 40 40 40 60 44 99 160 160 160 160 160 160 160 160 160 160 141 Greatest Overweight (x) 8 | . . . . . . . 1 1 2 . . . . . . . 1 1 . 8 Average Overweight (x) . | . . . . . . . . 1 . . . . . . . . . . . . Largest Inventory Capacity 20 | 8 15 15 15 15 15 15 15 15 15 15 15 15 15 15 15 15 15 20 20 5 Average Capacity 13 | 6 12 15 15 15 15 15 15 15 15 15 15 15 15 15 15 15 15 12 7 5 Most Carried 18 | 6 11 15 15 15 15 15 15 15 15 15 15 15 15 15 15 15 15 18 8 5 Average Carried 12 | 2 8 14 15 14 14 14 13 14 14 14 14 15 15 14 13 14 14 11 6 4 Final Capacity 15 | 8 15 15 15 15 15 15 15 15 15 15 15 15 15 15 15 15 15 5 5 5 Final Carried 15 | 6 11 15 15 14 15 13 15 15 15 15 15 15 15 15 14 15 15 5 4 3 Class Distribution -------------------- 46% | Scavenger-Tank 18% | Hacker-Mutant 5% | Scavenger-Gladiator 5% | Mutant 4% | Commander-Tank 4% | Scavenger-Gunner 3% | Scavenger-Skirmisher Dominant Class ---------------- Mutant | -10/Materials Mutant | -10/Mines Hacker-Mutant | -9/Materials Hacker-Mutant | -9/Mines Hacker-Mutant | -7/Zion Hacker-Mutant | -6/Proximity Caves Scavenger-Tank | -6/Factory Scavenger-Tank | -5/Factory Scavenger-Tank | -5/Extension Scavenger-Tank | -5/Cetus Scavenger-Tank | -4/Factory Scavenger-Tank | -4/Upper Caves Scavenger-Tank | -4/Upper Caves Scavenger-Tank | -4/Zhirov Scavenger-Tank | -3/Proximity Caves Scavenger-Tank | -3/Research Scavenger-Tank | -3/Quarantine Scavenger-Tank | -2/Research Scavenger-Gunner | -2/Testing Scavenger-Gladiator | -2/Section 7 Resources | -11 -10 -10 -9 -9 -7 -6 -6 -5 -5 -5 -4 -4 -4 -4 -3 -3 -3 -2 -2 -2 ----------- Run | Yrd Mat Min Mat Min Zio Pro Fac Fac Ext Cet Fac Upp Upp Zhi Pro Res Qua Res Tes Sec Matter Collected 8275 | 260 48 188 18 4 10 112 275 . 789 361 288 150 206 . 595 356 1941 1080 827 767 Remotely 77 | . . . . . . . . . . . . . . . . . . . 77 . Salvage Created 11510 | . 69 105 . 14 . 115 479 . 1528 198 242 148 604 . 1138 640 2246 710 1216 2058 Parts 461 | . 11 5 . 1 . 7 30 . 68 13 12 1 22 . 45 23 121 13 46 43 Haulers Intercepted . | . . . . . . . . . . . . . . . . . . . . . Recyclers Shooed 6 | . . . . 1 . . 1 . 2 . . . . . . . . 2 . . Parts Field Recycled . | . . . . . . . . . . . . . . . . . . . . . Retrieved Matter . | . . . . . . . . . . . . . . . . . . . . . Parts Self-Destructed 88 | . . . . . . 16 . . . . . 6 18 . 48 . . . . . Prevented . | . . . . . . . . . . . . . . . . . . . . . Parts Restored . | . . . . . . . . . . . . . . . . . . . . . Kills | -11 -10 -10 -9 -9 -7 -6 -6 -5 -5 -5 -4 -4 -4 -4 -3 -3 -3 -2 -2 -2 ------- Run | Yrd Mat Min Mat Min Zio Pro Fac Fac Ext Cet Fac Upp Upp Zhi Pro Res Qua Res Tes Sec Combat Hostiles Destroyed 184 | . 3 2 . . . 4 9 . 19 2 7 2 9 . 24 9 35 20 16 23 Melee 4 | . . . . . . . . . . . . . . . . . . . 1 3 Guns 103 | . 3 2 . . . 3 6 . 15 2 3 1 5 . 15 8 21 6 10 3 Cannons 45 | . . . . . . . 2 . 3 . 4 1 3 . 4 1 14 7 1 5 AOE 14 | . . . . . . 1 . . 1 . . . 1 . 5 . . 6 . . Classes Destroyed 22 | . 3 1 . . . 1 4 . 2 . . . . . 3 . 3 2 1 2 Worker 8 | . 1 . . 1 . . . . . . . . . . . . 2 3 1 . Builder 5 | . . . . . . . . . 1 . . . . . . . 3 . . 1 Recycler 2 | . . . . . . . . . 2 . . . . . . . . . . . Mechanic 2 | . . . . . . . . . . . . . . . . . . . . 2 Operator 2 | . . . . . . . 1 . . . . . . . . . 1 . . . Drone 1 | . . . . . . . . . . . . . . . 1 . . . . . Watcher 10 | . 1 . . . . . . . 2 . . . . . . . 3 2 2 . Swarmer 32 | . 3 . . . . 3 2 . 5 . 4 . 3 . 7 . 2 . 3 . Grunt 52 | . . . . . . 1 2 . 5 . 1 1 4 . 10 8 7 3 3 7 Brawler 5 | . . . . . . . . . . . . . . . 2 . . . . 3 Duelist 6 | . . . . . . . . . . . . . . . 3 . . 1 . 2 Protector 2 | . . . . . . . . . . . . . . . . . 1 . . 1 Researcher 1 | . . . . . . . . . . . . . . . . . 1 . . . Sentry 25 | . . 2 . . . . 2 . 8 . . . . . 1 1 5 3 . 3 Specialist 3 | . . . . . . . . . . . . . . . . . 3 . . . Hunter 17 | . . . . . . . 1 . . . . 1 2 . . . 2 4 5 2 Programmer 23 | . . . . . . . 1 . . . 2 . . . . . 12 4 2 2 Heavy 1 | . . . . . . . . . . . . . . . . . . 1 . . Q-Series 7 | . . . . . . . . . . . . . . . . . . 4 2 1 Behemoth 2 | . . . . . . . 1 . 1 . . . . . . . . . . . Cetus Guard 2 | . . . . . . . . . . 2 . . . . . . . . . . Enhanced Grunt 2 | . . . . . . . . . . . . . 2 . . . . . . . Lightning 3 | . . . . . . . . . . . . . . . . . 3 . . . Executioner 2 | . . . . . . . . . . . . . . . . . . . . 2 Protovariant H 1 | . . . . . . . . . . . . . . . . . . . 1 . Assembled 1 | . . . . . . . . . . . . . . . . . . . 1 . Thug 1 | . . . . . . . . . 1 . . . . . . . . . . . Guerrilla 1 | . . . . . . . . . . 1 . . . . . . . . . . Best Kill Streak 9 | . 3 2 . 1 . 3 2 . 3 2 3 1 4 . 9 4 8 9 3 5 Combat Bots Only 9 | . 2 2 . . . 3 2 . 3 2 3 1 4 . 9 4 6 5 3 5 Max Kills in Single Turn 7 | . 2 1 . 1 . 1 1 . 2 1 2 1 3 . 4 1 2 7 2 1 Gunslinging . | . . . . . . . . . . . . . . . . . . . . . Exploded 4 | . . . . . . 1 . . 1 . . . 1 . 2 . . 4 . . Melee 1 | . . . . . . . . . . . . . . . . . . . 1 1 Uniques/NPCs Destroyed . | . . . . . . . . . . . . . . . . . . . . . Combat | -11 -10 -10 -9 -9 -7 -6 -6 -5 -5 -5 -4 -4 -4 -4 -3 -3 -3 -2 -2 -2 -------- Run | Yrd Mat Min Mat Min Zio Pro Fac Fac Ext Cet Fac Upp Upp Zhi Pro Res Qua Res Tes Sec Hostile Shots Fired 1659 | . 8 24 2 . . 45 56 15 87 25 7 26 74 . 99 35 243 395 223 295 Missed 525 | . 5 8 1 . . 13 17 5 20 13 1 10 14 . 26 11 88 137 74 82 Hits 1134 | . 3 16 1 . . 32 39 10 67 12 6 16 60 . 73 24 155 258 149 213 Melee 56 | . . . . . . . . . . . . . . . 16 . . 16 8 16 Projectile 1078 | . 3 16 1 . . 32 39 10 67 12 6 16 60 . 57 24 155 242 141 197 AOE 1 | . . . . . . . . . . . . . . . . . . . . 1 Critical Strikes 58 | . . 1 . . . 3 . . . 1 2 . 1 . 6 1 7 11 11 14 Actively Blocked 12 | . . . . . . 1 . . . . . . . . . . . 5 4 2 Part Disruptions 4 | . . . . . . . . . . . . . . . . . 2 1 . 1 Damage Taken 21772 | . 13 198 12 . . 406 405 147 1150 210 154 240 899 . 1557 431 2656 5868 3051 4375 Core 2163 | . 4 23 . . . 14 94 43 91 . 18 26 47 . 62 16 126 948 134 517 Absorbed by Shields 218 | . . . . . . . . . 62 41 . . . . . . . 115 . . Reduced by Siege Mode 290 | . . . . . . . . . . 3 . . 20 . . . 27 18 222 . Redirected to Shielding 474 | . . 5 3 . . 42 14 . . . . . . . 46 . 117 . 21 226 Ignored by Resistances 6007 | . 6 53 3 . . 117 122 40 331 67 45 72 258 . 430 125 743 1585 828 1182 Regen/Repaired (Parts) 350 | . . . . . . . . . . . . . . . . 350 . . . . Core Remaining (%) 90 | 100 . 89 . . . 96 88 . . 86 . . . . 86 . 89 . . . Volleys Fired 449 | . 11 13 2 1 . 17 17 1 55 19 9 8 14 . 32 18 81 61 52 38 Largest 4 | . 2 2 2 2 . 2 3 3 4 4 4 4 4 . 4 4 4 4 4 4 Hottest 290 | . 40 40 40 40 . 48 201 201 251 193 204 204 204 . 202 212 212 202 290 236 Shots Fired 1334 | . 22 26 4 2 . 29 45 3 205 56 36 31 56 . 115 66 293 136 134 75 Gun 979 | . 22 26 4 2 . 25 35 2 187 39 18 16 33 . 87 48 181 74 131 49 Cannon 320 | . . . . . . . 4 1 18 17 18 15 23 . 18 16 109 52 3 26 Launcher 20 | . . . . . . 4 . . . . . . . . 10 . . 6 . . Special 15 | . . . . . . . 6 . . . . . . . . 2 3 4 . . Kinetic 983 | . 22 26 4 2 . 25 14 1 113 37 27 24 42 . 76 48 265 106 113 38 Thermal 265 | . . . . . . . 25 2 54 19 9 7 14 . 29 16 25 18 10 37 Explosive 26 | . . . . . . 4 . . . . . . . . 10 . 3 9 . . Electromagnetic 58 | . . . . . . . 6 . 38 . . . . . . . . 3 11 . Robot Hit Streak 64 | . 6 27 1 1 . 6 13 10 30 14 6 4 15 . 15 30 64 62 27 20 Robot Miss Streak 6 | . 2 . 2 . . 2 2 . 2 1 2 3 1 . 6 3 4 3 2 2 Penetration Max 1 | . . . . . . . . . 1 1 1 1 1 . 1 1 1 1 1 1 Secondary Targets 5 | . . 1 . . . . . . . . . . . . 1 . . . 3 . Max Gunslinging Chain 1 | . . 1 . . . . . . . . . . . . 1 . . . 1 . Shots Hit Robots 1094 | . 14 26 1 1 . 19 33 3 194 45 23 16 39 . 75 44 203 125 127 106 Core Hits 535 | . 8 5 . 2 . 13 17 . 62 14 10 6 20 . 66 24 118 96 46 28 Critical Kills 39 | . . . . . . . 1 . . 2 1 . 4 . 6 6 10 1 4 4 Critical Parts Destroyed 64 | . 1 . . . . . 1 . 2 2 5 1 2 . 7 6 11 2 13 11 Critical Strikes 133 | . 1 . . . . . 4 . 7 8 6 1 6 . 14 15 25 5 18 23 Burn 11 | . . . . . . . 2 . 4 2 . . . . . . . . . 3 Destroy 90 | . 1 . . . . . 2 . 3 4 6 1 6 . 14 15 22 3 11 2 Blast 10 | . . . . . . . . . . 2 . . . . . . 3 1 . 4 Corrupt 1 | . . . . . . . . . . . . . . . . . . . 1 . Smash 20 | . . . . . . . . . . . . . . . . . . . 6 14 Sever 1 | . . . . . . . . . . . . . . . . . . 1 . . Melee Attacks 157 | . . . . . . . . . 33 2 . . . . . 2 5 9 18 88 Impact 122 | . . . . . . . . . . . . . . . . 2 5 9 18 88 Slashing . | . . . . . . . . . . . . . . . . . . . . . Piercing . | . . . . . . . . . . . . . . . . . . . . . Sneak Attacks 38 | . . . . . . . . . 33 2 . . . . . . . 1 1 1 Combat Hostiles . | . . . . . . . . . . . . . . . . . . . . . Follow-up Attacks 16 | . . . . . . . . . . . . . . . . . . . 4 12 Damage Inflicted 40283 | 1 162 271 13 30 . 662 691 73 3662 1031 791 419 1136 . 3797 1337 6772 11251 3541 4643 Guns 19449 | . 162 271 13 20 . 313 549 46 3287 761 419 265 724 . 1896 1038 3921 1833 2790 1141 Cannons 7389 | . . . . . . . 85 27 260 270 372 154 330 . 252 299 2778 1593 78 891 Explosions 9622 | . . . . . . 349 . . 78 . . . 82 . 1649 . . 7464 . . Melee 3467 | . . . . . . . . . . . . . . . . . . 187 669 2611 Ramming 107 | 1 . . . 10 . . 2 . 37 . . . . . . . 34 19 4 . Kinetic 20799 | . 162 271 13 20 . 313 203 24 1980 802 612 364 730 . 1581 959 6180 2937 2400 1248 Thermal 12107 | . . . . . . . 450 49 1096 229 179 55 406 . 567 378 519 7202 193 784 Explosive 2732 | . . . . . . 349 . . . . . . . . 1649 . . 734 . . Electromagnetic 877 | . . . . . . . 36 . 549 . . . . . . . . 17 275 . Impact 3467 | . . . . . . . . . . . . . . . . . . 187 669 2611 Slashing 194 | . . . . . . . . . . . . . . . . . 39 155 . . Piercing . | . . . . . . . . . . . . . . . . . . . . . Highest Corruption 70 | . . . . . . . . 1 3 3 . . . . . 1 9 22 43 70 Average Corruption 15 | . . . . . . . . 1 2 3 . . . . . 1 3 17 29 48 Corruption Purged . | . . . . . . . . . . . . . . . . . . . . . Corruption Blocked 6 | . . . . . . . . . . . . . . . . . . . 6 . Effects 315 | . . . . . . . . 2 45 12 . . . . . 6 26 58 69 97 Message Errors 71 | . . . . . . . . 1 11 2 . . . . . 2 6 14 15 20 Matter Fused 63 | . . . . . . . . 1 8 5 . . . . . . 9 6 16 18 Heat Flow Errors 38 | . . . . . . . . . 8 2 . . . . . 3 1 10 3 11 Energy Discharges 37 | . . . . . . . . . 6 . . . . . . . 3 8 12 8 Parts Rejected 12 | . . . . . . . . . . . . . . . . . 1 5 . 6 Parts Fused 4 | . . . . . . . . . 1 1 . . . . . . . 1 . 1 Data Loss (minor) 21 | . . . . . . . . . 3 . . . . . . . . 5 7 6 Data Loss (major) 10 | . . . . . . . . . 2 1 . . . . . 1 1 . 1 4 Misfires 13 | . . . . . . . . . 3 1 . . . . . . 2 3 3 1 Alerts 6 | . . . . . . . . . 2 . . . . . . . 1 . 3 . Misdirections 10 | . . . . . . . . . . . . . . . . . . 1 . 9 Weapon Failures 30 | . . . . . . . . . 1 . . . . . . . 2 5 9 13 Overload Shots . | . . . . . . . . . . . . . . . . . . . . . Overflow Damage 2128 | . . . . . . 40 . 17 . . 6 . . . 38 . 139 625 435 828 Projectiles 209 | . . . . . . . . 17 . . 6 . . . . . 139 47 . . Explosions 560 | . . . . . . 40 . . . . . . . . 38 . . 482 . . Melee 1359 | . . . . . . . . . . . . . . . . . . 96 435 828 Knockbacks 93 | . . . . . . . . . 2 . 1 1 1 . 1 2 26 42 3 14 Impact 12 | . . . . . . . . . 2 . . . . . . . . . 2 8 Kinetic 76 | . . . . . . . . . . . 1 1 1 . 1 2 26 39 1 4 Secondary 5 | . . . . . . . . . . . . . . . . . . 3 . 2 Self-Inflicted Damage 1000 | . . . . . . . . . 51 . . . 67 . 87 . . 795 . . Shots 10 | . . . . . . . . . 1 . . . 1 . 4 . . 4 . . Rammed 27 | 1 . . . 1 . . 1 . 2 . . . . . . . 3 18 1 . Targets Rammed 28 | 1 . . . 1 . . 1 . 2 . . . . . . . 4 18 1 . Kicked . | . . . . . . . . . . . . . . . . . . . . . Crushed 1 | . . . . . . . . . . . . . . . . . 1 . . . Highest Temperature 389 | . 6 39 . . . 29 192 27 276 227 84 359 351 . 329 267 47 366 389 229 Average Temperature 83 | . 4 15 . . . 12 70 18 53 46 33 164 138 . 88 86 28 101 119 98 Received Heat Transfer 2554 | . . 90 9 . . 123 42 90 290 18 9 39 114 . 262 138 214 486 81 549 Effects 6 | . . . . . . . . . . . . . . . 4 . . 1 1 . Shutdowns 1 | . . . . . . . . . . . . . . . . . . . 1 . Interference 4 | . . . . . . . . . . . . . . . 3 . . 1 . . Short Circuit 1 | . . . . . . . . . . . . . . . 1 . . . . . Siege Activations 10 | . . . . . . . . . . 1 . . 2 . . . 3 2 2 . Total Turns 220 | . . . . . . . . . . 12 . . 27 . . . 82 29 70 . Longest Duration 48 | . . . . . . . . . . 12 . . 16 . . . 44 22 48 . Martial Activations . | . . . . . . . . . . . . . . . . . . . . . Shielding Activations . | . . . . . . . . . . . . . . . . . . . . . Robots Disrupted . | . . . . . . . . . . . . . . . . . . . . . Combat Hostiles . | . . . . . . . . . . . . . . . . . . . . . Robots Corrupted 18 | . . . . . . . . . . . . . . . . . . 1 5 12 Combat Hostiles 17 | . . . . . . . . . . . . . . . . . . 1 4 12 Parts Fried 22 | . . . . . . . . . . . . . . . . . . . 6 16 Impact Corruptions 34 | . . . . . . . . . . . . . . . . . . 2 9 23 Robots Melted . | . . . . . . . . . . . . . . . . . . . . . Combat Hostiles . | . . . . . . . . . . . . . . . . . . . . . Parts Melted 7 | . . . . . . 1 2 . 1 . . . . . . 1 . . 2 . Heat Transferred 8903 | . . . . . . . 1312 74 1918 518 222 74 524 . 777 518 703 675 259 1329 Parts Sabotaged 2 | . . . . . . . . . . . . . . . . . . . . 2 Parts Stolen . | . . . . . . . . . . . . . . . . . . . . . Parts Stripped . | . . . . . . . . . . . . . . . . . . . . . Power Chain Reactions 1 | . . . . . . . . . 1 . . . . . . . . . . . Alert | -11 -10 -10 -9 -9 -7 -6 -6 -5 -5 -5 -4 -4 -4 -4 -3 -3 -3 -2 -2 -2 ------- Run | Yrd Mat Min Mat Min Zio Pro Fac Fac Ext Cet Fac Upp Upp Zhi Pro Res Qua Res Tes Sec Maximum Alert Level 5 | . . . . . . . . . 2 1 1 . . . . 2 1 4 2 5 Low Security (%) 65 | 100 100 100 100 100 . . 100 100 87 64 93 . . . . . 67 52 . 53 Level 1 12 | . . . . . . . . . 3 35 6 . . . . . 32 . 52 . Level 2 10 | . . . . . . . . . 8 . . . . . . 100 . . 47 . Level 3 4 | . . . . . . . . . . . . . . . . . . 36 . . Level 4 1 | . . . . . . . . . . . . . . . . . . 10 . . Level 5 . | . . . . . . . . . . . . . . . . . . . . . High Security . | . . . . . . . . . . . . . . . . . . . . . Max Security 4 | . . . . . . . . . . . . . . . . . . . . 46 Peak Influence 3338 | . 45 53 31 5 . . 100 30 540 292 322 . . . . 590 320 1157 606 3338 Initial 512 | . . 1 13 . . . . . . 237 11 . . . . 504 247 29 512 110 Average 287 | . 11 3 7 . . . 35 5 71 149 68 . . . . 532 159 509 383 1091 Influence Increases 10934 | . 86 93 39 5 . 270 426 50 1134 277 778 163 195 . 589 621 1033 2147 695 2333 Destroy 0b10 Robot/C 6040 | . 60 80 20 . . 200 260 . 660 160 280 100 180 . 520 180 700 540 480 1620 Destroy 0b10 Robot/NC 235 | . 10 . 5 5 . . 5 . 35 10 20 . . . 5 . 50 25 15 50 Destroy Leader 846 | . 12 10 10 . . 20 70 . 46 . 44 20 10 . 40 30 106 164 54 210 Allied During Kill 1000 | . . 3 1 . . 50 26 . 262 84 166 43 5 . 24 . . 100 67 169 Successful Hack 251 | . 4 . 3 . . . . 20 8 . 26 . . . . 90 19 24 16 41 Select Force Hacks 60 | . . . . . . . 30 30 . . . . . . . . . . . . Disable Machine 252 | . . . . . . . 18 . 27 9 9 . . . . 9 54 45 27 54 Anti-Garrison Action 200 | . . . . . . . . . . . 200 . . . . . . . . . Destroy Structure 1225 | . . . . . . . 2 . 66 14 18 . . . . 12 104 964 6 39 Advance Influence 300 | . . . . . . . . . . . . . . . . 300 . . . . Partial Spotted 15 | . . . . . . . . . . . . . . . . . . 15 . . Lose Combat Pursuer 510 | . . . . . . . 15 . 30 . 15 . . . . . . 270 30 150 Influence Decreases 9151 | . 81 55 81 6 . 270 426 50 646 741 702 263 195 . 245 460 1478 1160 1515 777 Entered New Map 1425 | . . 4 30 1 . . . . . 251 13 45 . . . 140 258 31 535 117 Time Decay 5553 | . 81 51 51 5 . 240 326 50 546 360 223 218 195 . 195 320 1130 642 560 360 Lost Part 837 | . . . . . . 10 . . . 10 . . . . 10 . 80 267 200 260 Lost Ally 910 | . . . . . . 20 100 . 100 120 40 . . . 40 . 10 220 220 40 Purge Threat 426 | . . . . . . . . . . . 426 . . . . . . . . . Squads Dispatched 70 | . . . . . . . 3 2 1 . 3 . 1 . 1 5 7 10 6 31 Investigation 10 | . . . . . . . 2 1 1 . 1 . 1 . . 2 1 1 . . Extermination 15 | . . . . . . . 1 . . . 1 . . . . . 4 5 3 1 Reinforcement 11 | . . . . . . . . 1 . . 1 . . . . 3 1 2 3 . Assault 33 | . . . . . . . . . . . . . . . 1 . . 2 . 30 Garrison 1 | . . . . . . . . . . . . . . . . . 1 . . . Intercept . | . . . . . . . . . . . . . . . . . . . . . Searches Triggered . | . . . . . . . . . . . . . . . . . . . . . Construction Impeded 2 | . . . . . . . . . . . 1 . . . . . . 1 . . Haulers Reinforced 2 | . . . . . . . . . . . . . . . . 1 . . 1 . Active Scanning Responses . | . . . . . . . . . . . . . . . . . . . . . Cargo Convoy Interrupts . | . . . . . . . . . . . . . . . . . . . . . Stealth | -11 -10 -10 -9 -9 -7 -6 -6 -5 -5 -5 -4 -4 -4 -4 -3 -3 -3 -2 -2 -2 --------- Run | Yrd Mat Min Mat Min Zio Pro Fac Fac Ext Cet Fac Upp Upp Zhi Pro Res Qua Res Tes Sec Distress Signals 29 | . 1 . . . . . . . 3 5 1 . . . . 7 . 6 2 4 Communications Jammed . | . . . . . . . . . . . . . . . . . . . . . Distress Signals . | . . . . . . . . . . . . . . . . . . . . . Times Spotted 490 | . 6 4 4 . . 10 14 6 34 9 15 4 9 . 28 19 45 52 29 202 Peak Tracking Total 26 | . 2 2 2 . . 4 4 6 6 5 5 3 4 . 9 4 4 20 3 26 Tactical Retreats 19 | . . . . . . . 1 . 2 . 1 . . . . . . 5 2 8 Traps | -11 -10 -10 -9 -9 -7 -6 -6 -5 -5 -5 -4 -4 -4 -4 -3 -3 -3 -2 -2 -2 ------- Run | Yrd Mat Min Mat Min Zio Pro Fac Fac Ext Cet Fac Upp Upp Zhi Pro Res Qua Res Tes Sec Traps Triggered 7 | . . . . . . . 1 1 1 . . . . . . . 3 1 . . Indirectly . | . . . . . . . . . . . . . . . . . . . . . Trap Hack Attempts . | . . . . . . . . . . . . . . . . . . . . . Triggered . | . . . . . . . . . . . . . . . . . . . . . Disarmed . | . . . . . . . . . . . . . . . . . . . . . Reprogrammed 4 | . . . . . . . . . . . 4 . . . . . . . . . Reused . | . . . . . . . . . . . . . . . . . . . . . Traps Extracted . | . . . . . . . . . . . . . . . . . . . . . Installed . | . . . . . . . . . . . . . . . . . . . . . Triggered . | . . . . . . . . . . . . . . . . . . . . . Machines | -11 -10 -10 -9 -9 -7 -6 -6 -5 -5 -5 -4 -4 -4 -4 -3 -3 -3 -2 -2 -2 ---------- Run | Yrd Mat Min Mat Min Zio Pro Fac Fac Ext Cet Fac Upp Upp Zhi Pro Res Qua Res Tes Sec Machines Disabled 40 | . 1 . . . . . 2 . 3 2 1 . 4 . 1 1 7 5 3 10 Max in Single Turn 3 | . 1 . . . . . 1 . 1 1 1 . 3 . 1 1 1 3 1 1 Garrison Access 3 | . . . . . . . . . . . 1 . . . . . 1 . . 1 Machines Repaired . | . . . . . . . . . . . . . . . . . . . . . Machines Dismantled . | . . . . . . . . . . . . . . . . . . . . . Machines Sabotaged . | . . . . . . . . . . . . . . . . . . . . . Overloaded Fab Kills . | . . . . . . . . . . . . . . . . . . . . . Hacking | -11 -10 -10 -9 -9 -7 -6 -6 -5 -5 -5 -4 -4 -4 -4 -3 -3 -3 -2 -2 -2 --------- Run | Yrd Mat Min Mat Min Zio Pro Fac Fac Ext Cet Fac Upp Upp Zhi Pro Res Qua Res Tes Sec Machines Accessed 55 | . 1 . 1 . . . 7 3 11 2 7 . 1 1 . 4 8 2 1 6 Terminals 40 | . 1 . 1 . . . 3 2 11 2 5 . 1 . . 1 7 1 1 4 Fabricators 4 | . . . . . . . 1 . . . . . . . . 2 . 1 . . Repair Stations 1 | . . . . . . . . . . . . . . . . 1 . . . . Recycling Units 3 | . . . . . . . 2 1 . . . . . . . . . . . . Scanalyzers 3 | . . . . . . . 1 . . . 1 . . . . . . . . 1 Garrison Access 3 | . . . . . . . . . . . 1 . . . . . 1 . . 1 Total Hacks 123 | . 2 . 2 . . . 13 4 15 5 23 . 6 4 . 11 19 4 3 12 Successful 78 | . 1 . 1 . . . 9 3 11 2 11 . 6 4 . 6 12 2 2 8 Failed 44 | . 1 . 1 . . . 4 1 4 3 11 . . . . 5 7 2 1 4 Catastrophic 9 | . . . . . . . 1 . . . 4 . . . . 1 1 1 1 . Database Lockouts 1 | . . . . . . . . . . . 1 . . . . . . . . . Manual 50 | . 2 . 1 . . . 5 2 2 2 12 . . . . 7 12 1 3 1 Terminals 91 | . 2 . 2 . . . 6 3 15 5 18 . 6 . . 3 18 3 3 7 Fabricators 9 | . . . . . . . 1 . . . . . . . . 7 . 1 . . Repair Stations 1 | . . . . . . . . . . . . . . . . 1 . . . . Recycling Units 3 | . . . . . . . 2 1 . . . . . . . . . . . . Scanalyzers 9 | . . . . . . . 4 . . . 2 . . . . . . . . 3 Garrison Access 6 | . . . . . . . . . . . 3 . . . . . 1 . . 2 Terminal Hacks 46 | . . . . . . . 2 1 9 2 7 . 6 4 . 2 7 . 1 5 Record 13 | . . . . . . . . . . 1 . . 6 4 . . 1 . . 1 Robot Schematic 1 | . . . . . . . . . . . 1 . . . . . . . . . Robot Analysis 1 | . . . . . . . . . . . 1 . . . . . . . . . Open Door 11 | . . . . . . . . . 8 1 . . . . . . 1 . . 1 Branch Access Points 3 | . . . . . . . 1 1 . . 1 . . . . . . . . . Emergency Access Points 2 | . . . . . . . 1 . . . . . . . . . 1 . . . Machine Index 1 | . . . . . . . . . . . . . . . . 1 . . . . Terminal Index 1 | . . . . . . . . . . . . . . . . . . . . 1 Unreport Threat 3 | . . . . . . . . . . . 3 . . . . . . . . . Locate Traps 1 | . . . . . . . . . . . . . . . . 1 . . . . Reprogram Traps 1 | . . . . . . . . . . . 1 . . . . . . . . . Dispatch Records 1 | . . . . . . . . . . . . . . . . . 1 . . . Surveillance Status 1 | . . . . . . . . . . . . . . . . . . . . 1 Zone Layout 5 | . . . . . . . . . 1 . . . . . . . 3 . 1 . Activate Exoskeleton 1 | . . . . . . . . . . . . . . . . . . . . 1 Fabricator Hacks 1 | . . . . . . . . . . . . . . . . . . 1 . . Build 1 | . . . . . . . . . . . . . . . . . . 1 . . Repair Station Hacks . | . . . . . . . . . . . . . . . . . . . . . Recycling Unit Hacks 1 | . . . . . . . 1 . . . . . . . . . . . . . Retrieve Components 1 | . . . . . . . 1 . . . . . . . . . . . . . Scanalyzer 6 | . . . . . . . 4 . . . 1 . . . . . . . . 1 Retrieve Study 6 | . . . . . . . 4 . . . 1 . . . . . . . . 1 Garrison Access Hacks 2 | . . . . . . . . . . . . . . . . . 1 . . 1 Seal Access 2 | . . . . . . . . . . . . . . . . . 1 . . 1 Unauthorized Hacks 22 | . 1 . 1 . . . 2 2 2 . 3 . . . . 4 4 1 1 1 Terminals 16 | . 1 . 1 . . . 1 1 2 . 2 . . . . 1 4 1 1 1 Assimilate 2 | . . . . . . . . . . . . . . . . . 2 . . . Botnet 14 | . 1 . 1 . . . 1 1 2 . 2 . . . . 1 2 1 1 1 Fabricators 2 | . . . . . . . . . . . . . . . . 2 . . . . Fabnet 2 | . . . . . . . . . . . . . . . . 2 . . . . Repair Stations 1 | . . . . . . . . . . . . . . . . 1 . . . . Patch 1 | . . . . . . . . . . . . . . . . 1 . . . . Recycling Units 2 | . . . . . . . 1 1 . . . . . . . . . . . . Tunnel 2 | . . . . . . . 1 1 . . . . . . . . . . . . Scanalyzers . | . . . . . . . . . . . . . . . . . . . . . Garrison Access 1 | . . . . . . . . . . . 1 . . . . . . . . . Jam 1 | . . . . . . . . . . . 1 . . . . . . . . . Data Cores Recovered 2 | . . . 1 . . . 1 . . . . . . . . . . . . . Used . | . . . . . . . . . . . . . . . . . . . . . Hacking Detections 32 | . 1 . 1 . . . 5 2 4 . 7 . 1 . . 3 3 2 . 3 Full Trace Events 4 | . . . . . . . 1 . . . . . 1 . . 1 . 1 . . Feedback Events 1 | . . . . . . . . . . . . . . . . 1 . . . . Corruption 1 | . . . . . . . . . . . . . . . . 1 . . . . Feedback Blocked . | . . . . . . . . . . . . . . . . . . . . . Robot Schematics Acquired 1 | . . . . . . . . . . . 1 . . . . . . . . . Robots Built . | . . . . . . . . . . . . . . . . . . . . . Authchips . | . . . . . . . . . . . . . . . . . . . . . Time . | . . . . . . . . . . . . . . . . . . . . . Total Robot Build Rating . | . . . . . . . . . . . . . . . . . . . . . Part Schematics Acquired 3 | . . . . . . . . . . . . . . . . . . . 3 . Parts Built 1 | . . . . . . . . . . . . . . . . . . 1 . . Authchips . | . . . . . . . . . . . . . . . . . . . . . Time 46 | . . . . . . . . . . . . . . . . . . 46 . . Total Part Build Rating 9 | . . . . . . . . . . . . . . . . . . 9 . . Part Studies Acquired 6 | . . . . . . . 4 . . . 1 . . . . . . . . 1 Parts Repaired . | . . . . . . . . . . . . . . . . . . . . . Time . | . . . . . . . . . . . . . . . . . . . . . Parts Recycled . | . . . . . . . . . . . . . . . . . . . . . Recycled Matter . | . . . . . . . . . . . . . . . . . . . . . Retrieved Matter . | . . . . . . . . . . . . . . . . . . . . . Retrieved Components 6 | . . . . . . . 6 . . . . . . . . . . . . . Parts Scanalyzed . | . . . . . . . . . . . . . . . . . . . . . Part Schematics Acquired . | . . . . . . . . . . . . . . . . . . . . . Parts Damaged . | . . . . . . . . . . . . . . . . . . . . . Bothacking | -11 -10 -10 -9 -9 -7 -6 -6 -5 -5 -5 -4 -4 -4 -4 -3 -3 -3 -2 -2 -2 ------------ Run | Yrd Mat Min Mat Min Zio Pro Fac Fac Ext Cet Fac Upp Upp Zhi Pro Res Qua Res Tes Sec Used RIF Installer . | . . . . . . . . . . . . . . . . . . . . . Robots Hacked 12 | . . . . . . . . . 2 2 . . . . . 2 . 1 2 3 Non-combat . | . . . . . . . . . . . . . . . . . . . . . Combat 12 | . . . . . . . . . 2 2 . . . . . 2 . 1 2 3 Robot Hacks Applied 6 | . . . . . . . . . 2 2 . . . . . 2 . . . . parse_system 6 | . . . . . . . . . 2 2 . . . . . 2 . . . . Relay Couplers Released . | . . . . . . . . . . . . . . . . . . . . . Fabnet Peak Effective % 3 | . . . . . . . . . . . . . . . . . . 3 3 3 Autooverrided 6 | . . . . . . . . . . . . . . . . . . 1 2 3 Robots Rewired 19 | . . . . . . . . . 17 . . . . . 2 . . . . . Allies Hacked . | . . . . . . . . . . . . . . . . . . . . . Hacks Repelled . | . . . . . . . . . . . . . . . . . . . . . Allies | -11 -10 -10 -9 -9 -7 -6 -6 -5 -5 -5 -4 -4 -4 -4 -3 -3 -3 -2 -2 -2 -------- Run | Yrd Mat Min Mat Min Zio Pro Fac Fac Ext Cet Fac Upp Upp Zhi Pro Res Qua Res Tes Sec Total Allies 72 | . . 2 . . 8 . . . 26 5 . . . . 2 . 1 22 2 4 Largest Group 21 | . . 2 1 1 8 8 5 . 21 15 7 3 3 . 2 . 1 13 11 2 Highest-Rated Group 1252 | . . 43 31 31 194 194 135 . 663 845 648 281 281 . 95 . 10 185 154 1252 Highest-Rated Ally 1204 | . . 31 31 31 33 33 33 . 159 151 144 96 96 . 48 . 10 30 69 1204 Total Orders 23 | . . . . . . . . . . 18 5 . . . . . . . . . STAY 11 | . . . . . . . . . . 9 2 . . . . . . . . . ROAM 7 | . . . . . . . . . . 7 . . . . . . . . . . FOLLOW 5 | . . . . . . . . . . 2 3 . . . . . . . . . Ally Attacks 742 | . . 5 4 . . 45 29 . 154 46 38 19 3 . 15 . . 137 76 171 Total Damage 30263 | . . 101 42 . . 658 638 . 2204 1151 1365 751 48 . 316 . . 2569 928 19492 Kills 136 | . . 2 2 . . 6 4 . 17 8 11 3 . . 3 . . 7 8 65 Allies Corrupted 4 | . . . . . . . . . . . 1 . . . 1 . . 1 . 1 Allies Melted 1 | . . . . . . . 1 . . . . . . . . . . . . . Intel | -11 -10 -10 -9 -9 -7 -6 -6 -5 -5 -5 -4 -4 -4 -4 -3 -3 -3 -2 -2 -2 ------- Run | Yrd Mat Min Mat Min Zio Pro Fac Fac Ext Cet Fac Upp Upp Zhi Pro Res Qua Res Tes Sec Active Infowar (turns) 14031 | . . . . . 1370 720 783 246 1806 723 824 823 862 217 340 656 2270 1553 729 109 Sensors 10944 | . . . . . . . 238 246 1806 723 808 823 862 212 49 656 2270 1522 729 . Decoding 3228 | . . . . . 1370 720 783 246 109 . . . . . . . . . . . Machine Analysis 7041 | . . . . . . . . . . . 815 823 862 217 340 656 2270 1058 . . Jamming 109 | . . . . . . . . . . . . . . . . . . . . 109 Robot Analysis Total 1 | . . . . . . . . . . . 1 . . . . . . . . . Derelict Logs Recovered 10 | . . 2 . 1 3 1 . . . . . 2 1 . . . . . . . Drone Launches . | . . . . . . . . . . . . . . . . . . . . . Drone Recoveries . | . . . . . . . . . . . . . . . . . . . . . Decoded 0b10 Intel 17 | . . . . . . . 12 2 3 . . . . . . . . . . . Traps 14 | . . . . . . . 11 1 2 . . . . . . . . . . . Emergency Access 1 | . . . . . . . . . 1 . . . . . . . . . . . Garrisons 1 | . . . . . . . . 1 . . . . . . . . . . . . Exits 1 | . . . . . . . 1 . . . . . . . . . . . . . Exploration | -11 -10 -10 -9 -9 -7 -6 -6 -5 -5 -5 -4 -4 -4 -4 -3 -3 -3 -2 -2 -2 ------------- Run | Yrd Mat Min Mat Min Zio Pro Fac Fac Ext Cet Fac Upp Upp Zhi Pro Res Qua Res Tes Sec Turns Passed 18214 | 106 265 441 162 595 1802 720 783 246 2125 723 824 823 862 217 421 656 2270 1666 1136 1371 Spaces Moved 10099 | 60 141 248 88 366 1093 414 461 188 1110 320 488 490 499 131 183 371 1074 985 628 761 Core 42 | 5 . . . . . . . . . . . . . . . . . 35 . 2 Treads 8152 | 55 141 248 88 366 1093 414 241 . 821 320 488 490 499 131 183 371 1074 709 346 74 Legs 1000 | . . . . . . . . . . . . . . . . . . 33 282 685 Wheels 697 | . . . . . . . 220 188 289 . . . . . . . . . . . Hover . | . . . . . . . . . . . . . . . . . . . . . Flight 208 | . . . . . . . . . . . . . . . . . . 208 . . Fastest Speed 40 | 50 160 160 160 160 160 160 105 105 105 160 160 160 160 160 160 152 150 40 112 108 Average Speed 147 | 150 160 160 160 160 160 160 138 105 145 160 160 160 160 160 160 155 153 127 134 118 Slowest Speed 450 | 160 160 160 160 160 160 160 160 105 160 160 160 160 160 160 160 160 240 180 160 450 Overloaded Moves . | . . . . . . . . . . . . . . . . . . . . . Propulsion Burnouts . | . . . . . . . . . . . . . . . . . . . . . Robots Hopped . | . . . . . . . . . . . . . . . . . . . . . Potential Cave-ins . | . . . . . . . . . . . . . . . . . . . . . Cave-ins Triggered . | . . . . . . . . . . . . . . . . . . . . . Teleports 29 | . . . . . . . . . . . . . . . . . . 1 . 28 Exploration Rate (%) 47 | 4 42 49 13 59 84 74 16 7 79 72 15 63 73 60 37 13 92 26 60 50 Regions Visited 20 Branch Regions 13 Pre-discovered Areas 10 | . . . . 2 1 . 1 1 . . . 1 1 3 . . . . . . Known Exits Taken 14 | . . . 1 . . 1 1 1 1 1 1 1 1 1 1 1 1 1 . . Unknown Exits Taken 6 | 1 1 1 . 1 1 . . . . . . . . . . . . . 1 . Scrap Searched 6 | . . . . . 1 . . . . . . 3 1 . 1 . . . . . Spaces Dug 19 | . . . . . . . . . . . . . . . . 1 3 3 1 11 Terrain Destroyed 957 | . . . . . . 3 . . 13 1 3 13 22 . 75 7 90 717 1 12 Melee 19 | . . . . . . . . . . . . . . . . 1 3 3 1 11 Projectile 130 | . . . . . . . . . 10 1 3 13 10 . 24 6 57 5 . 1 AOE 808 | . . . . . . 3 . . 3 . . . 12 . 51 . 30 709 . . Terrain Rammed . | . . . . . . . . . . . . . . . . . . . . . Walls Destroyed . | . . . . . . . . . . . . . . . . . . . . . Machines Disabled . | . . . . . . . . . . . . . . . . . . . . . Actions | -11 -10 -10 -9 -9 -7 -6 -6 -5 -5 -5 -4 -4 -4 -4 -3 -3 -3 -2 -2 -2 --------- Run | Yrd Mat Min Mat Min Zio Pro Fac Fac Ext Cet Fac Upp Upp Zhi Pro Res Qua Res Tes Sec Total 12264 | 72 160 268 105 375 1149 442 564 234 1468 494 508 509 527 138 231 404 1483 1252 798 1083 Wait 1081 | . . 3 15 3 41 8 51 42 207 122 4 9 14 . . . 258 109 52 143 Move 10080 | 60 140 247 87 365 1092 413 460 187 1109 319 487 489 498 130 182 370 1073 984 627 761 Hop . | . . . . . . . . . . . . . . . . . . . . . Pick Up 71 | 6 4 4 . 2 7 . 9 1 1 6 3 1 . 1 1 2 7 5 8 3 Fast Attach 160 | 6 2 . 1 . 1 . 8 2 8 6 . 1 . 3 1 2 20 30 27 42 Attach 47 | . . . . . . 2 6 . . . 2 . . . 2 1 7 16 6 5 Detach 17 | . 1 . . . . . 1 . 1 . . . . . . . 2 7 2 3 Swap 65 | . 1 1 . . 1 2 3 . 17 7 2 . 1 1 6 7 12 1 . 3 Drop 103 | . 1 . . 3 7 . 8 1 14 13 1 1 . 3 . 2 14 12 10 13 Fire 449 | . 11 13 2 1 . 17 17 1 55 19 9 8 14 . 32 18 81 61 52 38 Melee 135 | . . . . . . . . . 33 2 . . . . . 2 5 9 13 71 Ram . | . . . . . . . . . . . . . . . . . . . . . Kick . | . . . . . . . . . . . . . . . . . . . . . Crush 27 | . . . . 1 . . 1 . 2 . . . . . . . 4 18 1 . Escape Stasis 9 | . . . . . . . . . 8 . . . . . . . . . . 1 Rewire 20 | . . . . . . . . . 13 . . . . . 7 . . . . . Trap . | . . . . . . . . . . . . . . . . . . . . . Miscellaneous . | . . . . . . . . . . . . . . . . . . . . . Route ------- -11/Scrapyard -10/Materials -10/Mines (discovered 2 exits: *Mat / [*Sub]) -9/Materials (discovered 2 exits: *Min x2) -9/Mines (discovered 3 exits: [*Mat x2] / [*Zio]) -7/Zion (discovered 2 exits: Dee / [*Pro]) -6/Proximity Caves -6/Factory (discovered 3 exits: *Fac / Low x2) -5/Factory (discovered 4 exits: Upp x2 / *Ext x2) -5/Extension (discovered 2 exits: *Fac / *Cet) -5/Cetus (discovered 2 exits: *Fac / [*Arc]) -4/Factory (discovered 2 exits: *Upp x2) -4/Upper Caves -4/Upper Caves (discovered 2 exits: Res / *Zhi) -4/Zhirov -3/Proximity Caves -3/Research -3/Quarantine -2/Research -2/Testing (discovered 3 exits: *Acc / *Sec / [*Frg]) -2/Section 7 History --------- Turn | Location | Event 7 | -11/Scrapyard | Discovered new exit (range 15) 107 | -11/Scrapyard | Entered Materials 313 | -10/Materials | Build established: Mutant 359 | -10/Materials | Discovered new exit (range 9) 372 | -10/Materials | Entered Mines 430 | -10/Mines | Learned 4 Materials zone layouts 475 | -10/Mines | Learned location of 1 exit from Materials 614 | -10/Mines | Discovered new exit (range 8) 806 | -10/Mines | Discovered new exit (range 5) 813 | -10/Mines | Entered Materials 813 | -9/Materials | Accompanied by 1 ally 813 | -9/Materials | Evolved 2 slots: Utility x2 814 | -9/Materials | Identified exit to Mines 818 | -9/Materials | Led the pair of lost Derelicts to an unsafe place 975 | -9/Materials | Entered Mines 975 | -9/Mines | Accompanied by 1 ally 999 | -9/Mines | Learned location of Zion (-7) 1054 | -9/Mines | Received a Rocket Launcher from a helpful Derelict 1095 | -9/Mines | A Derelict revealed a hidden shortcut to a safe place 1119 | -9/Mines | Learned location of Storage (-7) 1136 | -9/Mines | Build established: Hacker-Mutant 1198 | -9/Mines | Discovered new exit (range 10) 1260 | -9/Mines | Found a damaged Exp. Sensor Array with a note attached 1264 | -9/Mines | Found Prototype Device 1295 | -9/Mines | Discovered new exit (range 6) 1570 | -9/Mines | Entered Zion 1570 | -7/Zion | Accompanied by 1 ally 1620 | -7/Zion | Led the pair of lost Derelicts to a safe place 1663 | -7/Zion | Discovered new exit (range 12) 1714 | -7/Zion | Gained Derelict followers 2056 | -7/Zion | Found Prototype Special Weapon 2058 | -7/Zion | Found Prototype Special Weapon 2076 | -7/Zion | Found Prototype Special Weapon 2141 | -7/Zion | Found Prototype Device 2174 | -7/Zion | Learned Factory emergency access door positions 2398 | -7/Zion | Identified exit to Deep Caves 2420 | -7/Zion | Gained Derelict followers 2542 | -7/Zion | Learned location of 1 exit from Proximity Caves 3372 | -7/Zion | Entered Proximity Caves 3372 | -6/Proximity Caves | Accompanied by 8 allies 3373 | -6/Proximity Caves | Identified exit to Factory 3645 | -6/Proximity Caves | Attracted the attention of an 0b10 checkpoint 3945 | -6/Proximity Caves | Lost 3 parts (1n1u1w) 4073 | -6/Proximity Caves | Learned Factory emergency access door positions 4092 | -6/Proximity Caves | Entered Factory 4092 | -6/Factory | Accompanied by 5 allies 4092 | -6/Factory | Evolved 6 slots: Propulsion x2, Utility x3, Weapon x1 4288 | -6/Factory | Spotted B-75 Beast 4316 | -6/Factory | Destroyed B-75 Beast 4424 | -6/Factory | Identified exit to Lower Caves 4627 | -6/Factory | Build established: Scavenger-Tank 4628 | -6/Factory | Identified Phasing AFG 4630 | -6/Factory | Identified Exp. Sensor Array 4794 | -6/Factory | Identified exit to Factory 4800 | -6/Factory | Allied Derelicts emerged from ambush trap array 4875 | -6/Factory | Entered another Factory area 4875 | -5/Factory | Evolved 2 slots: Utility x1, Weapon x1 4940 | -5/Factory | Build established: Scavenger-Skirmisher 4956 | -5/Factory | Identified exit to Upper Caves 4956 | -5/Factory | Identified exit to Extension 5121 | -5/Factory | Entered Extension 5539 | -5/Extension | Build established: Scavenger-Tank 6025 | -5/Extension | Rescued a captive Derelict 6066 | -5/Extension | Rescued a captive Derelict 6120 | -5/Extension | Rescued a captive Derelict 6122 | -5/Extension | Rescued a captive Derelict 6147 | -5/Extension | Rescued a captive Derelict 6155 | -5/Extension | Rescued a captive Derelict 6156 | -5/Extension | Rescued a captive Derelict 6383 | -5/Extension | Disrupted transfer network 6608 | -5/Extension | Build established: Commander-Tank 6689 | -5/Extension | Spotted B-75 Beast 6700 | -5/Extension | Allies destroyed B-75 Beast 6711 | -5/Extension | Spotted B-75 Beast 6722 | -5/Extension | Destroyed B-75 Beast 6746 | -5/Extension | Lost 4 allies 6883 | -5/Extension | Rescued A7 6949 | -5/Extension | Rescued a captive Derelict 6972 | -5/Extension | Rescued a captive Derelict 7177 | -5/Extension | Discovered new exit (range 10) 7179 | -5/Extension | Discovered new exit (range 6) 7190 | -5/Extension | Identified exit to Cetus 7195 | -5/Extension | Identified exit to Factory 7246 | -5/Extension | Entered Cetus 7246 | -5/Cetus | Accompanied by 13 allies (A7) 7251 | -5/Cetus | Acquired a Cetus Manufacturing Module code from A7 7275 | -5/Cetus | Spotted Cetus Guard 7275 | -5/Cetus | Spotted Cetus Guard 7277 | -5/Cetus | Spotted Cetus Guard 7278 | -5/Cetus | Spotted Cetus Guard 7284 | -5/Cetus | Allies destroyed Cetus Guard 7291 | -5/Cetus | Allies destroyed Cetus Guard 7303 | -5/Cetus | Allies destroyed Cetus Guard 7306 | -5/Cetus | Allies destroyed Cetus Guard 7439 | -5/Cetus | Started Cetus Manufacturing Module 7464 | -5/Cetus | Manufactured an Enhanced Grunt 7489 | -5/Cetus | Manufactured an Enhanced Grunt 7514 | -5/Cetus | Manufactured an Enhanced Grunt 7539 | -5/Cetus | Manufactured an Enhanced Grunt 7564 | -5/Cetus | Manufactured an Enhanced Grunt 7641 | -5/Cetus | Found a strange terminal 7671 | -5/Cetus | Escorted A7 to Cetus Mainframe 7696 | -5/Cetus | Discovered new exit (range 16) 7738 | -5/Cetus | Spotted Cetus Guard 7739 | -5/Cetus | Spotted Cetus Guard 7739 | -5/Cetus | Destroyed Cetus Guard 7742 | -5/Cetus | Spotted Cetus Guard 7742 | -5/Cetus | Spotted Cetus Guard 7750 | -5/Cetus | Allies destroyed Cetus Guard 7750 | -5/Cetus | Destroyed Cetus Guard 7754 | -5/Cetus | Allies destroyed Cetus Guard 7773 | -5/Cetus | Discovered exit to Factory (range 16) 7783 | -5/Cetus | Met Revision 17 7969 | -5/Cetus | Entered Factory 7969 | -4/Factory | Accompanied by 7 allies (A7) 7969 | -4/Factory | Evolved 2 slots: Utility x2 7974 | -4/Factory | Received a hacking code to weaken MAIN.C 8000 | -4/Factory | Build established: Scavenger-Tank 8209 | -4/Factory | Identified exit to Upper Caves 8474 | -4/Factory | Central database locked down 8793 | -4/Factory | Entered Upper Caves 8793 | -4/Upper Caves | Accompanied by 3 allies 8881 | -4/Upper Caves | Encountered a Warlord checkpoint 9317 | -4/Upper Caves | Learned Research terminal intel 9594 | -4/Upper Caves | Discovered new exit (range 10) 9608 | -4/Upper Caves | Identified exit to Upper Caves 9616 | -4/Upper Caves | Entered another Upper Caves area 9616 | -4/Upper Caves | Accompanied by 3 allies 9850 | -4/Upper Caves | Attracted the attention of an 0b10 base 9892 | -4/Upper Caves | Lost 3 allies 9905 | -4/Upper Caves | Identified exit to Research 9905 | -4/Upper Caves | Learned location of 1 exit from Factory 9905 | -4/Upper Caves | Learned Research trap positions 9980 | -4/Upper Caves | Discovered new exit (range 11) 9995 | -4/Upper Caves | Identified exit to Zhirov 10478 | -4/Upper Caves | Entered Zhirov 10478 | -4/Zhirov | Discovered new exit (range 3) 10507 | -4/Zhirov | Met Zhirov 10539 | -4/Zhirov | Learned location of Quarantine (-3) 10539 | -4/Zhirov | Learned location of Testing (-2) 10539 | -4/Zhirov | Learned location of Command (-1) 10547 | -4/Zhirov | Zhirov requested help retrieving the SGEMP Prototype 10575 | -4/Zhirov | Found Alien Artifact 10575 | -4/Zhirov | Identified Integrated Reactor 10575 | -4/Zhirov | Installed Integrated Reactor, increased core energy generation (+10) 10596 | -4/Zhirov | Found Alien Artifact 10693 | -4/Zhirov | Identified exit to Proximity Caves 10695 | -4/Zhirov | Entered Proximity Caves 10698 | -3/Proximity Caves | Spotter reported a threat 10715 | -3/Proximity Caves | Spotter reported a threat 10744 | -3/Proximity Caves | Attracted the attention of an 0b10 outpost 10791 | -3/Proximity Caves | Destroyed 9 combat bots 11103 | -3/Proximity Caves | Discovered exit to Research (range 7) 11116 | -3/Proximity Caves | Entered Research 11116 | -3/Research | Evolved 2 slots: Utility x2 11117 | -3/Research | Loaded intel: 76 trap records 11118 | -3/Research | Loaded intel: 23 terminal locations 11316 | -3/Research | Revision forces began assault on 0b10 11378 | -3/Research | Met up with Revision 17++ 11764 | -3/Research | Discovered new exit (range 6) 11770 | -3/Research | Identified exit to Quarantine 11772 | -3/Research | Entered Quarantine 11788 | -3/Quarantine | Found Alien Artifact 11788 | -3/Quarantine | Identified Phase Redirector 11937 | -3/Quarantine | Garrison activated, responded to threat 12132 | -3/Quarantine | Discovered new exit (range 10) 12140 | -3/Quarantine | Identified RU-N14's Throwing Claymores (x3) 12154 | -3/Quarantine | Found Alien Launcher 12162 | -3/Quarantine | Found Alien Reactor 12162 | -3/Quarantine | Identified Matter Drive 12607 | -3/Quarantine | Found Alien Artifact 12607 | -3/Quarantine | Identified Core Reset Matrix 12607 | -3/Quarantine | Identified Transdimensional Reconstructor 12607 | -3/Quarantine | Identified Sigix Terminator 12607 | -3/Quarantine | Used Core Reset Matrix 12611 | -3/Quarantine | Detected hypermatrix surge 12611 | -3/Quarantine | Sensed 5 artifacts in vicinity 13427 | -3/Quarantine | Found Subatomic Replicator 13432 | -3/Quarantine | Used Subatomic Replicator to replicate Centrium Heavy Treads 13452 | -3/Quarantine | Met incapacitated Sigix Warrior 13452 | -3/Quarantine | Lockdown squad dispatched 13457 | -3/Quarantine | Acquired the access code to the Sigix quarantine chamber 13460 | -3/Quarantine | Unlocked Sigix quarantine chamber 13466 | -3/Quarantine | Found Sigix Containment Pod 13541 | -3/Quarantine | Spotted Lightning 13544 | -3/Quarantine | Spotted Lightning 13555 | -3/Quarantine | Spotted Lightning 13557 | -3/Quarantine | Destroyed Lightning 13574 | -3/Quarantine | Destroyed Lightning 13604 | -3/Quarantine | Destroyed Lightning 13655 | -3/Quarantine | Found Prototype Processor 13655 | -3/Quarantine | Identified Exp. Targeting Computer 13994 | -3/Quarantine | Discovered new exit (range 9) 13999 | -3/Quarantine | Scanned by Researcher 14029 | -3/Quarantine | Identified exit to Research 14042 | -3/Quarantine | Entered Research 14042 | -2/Research | Evolved 2 slots: Utility x2 14294 | -2/Research | Fabricated Biometal Heavy Treads (x1) 14496 | -2/Research | System corruption reached 10% 14528 | -2/Research | Lost 8 parts (1p6u1w) 14597 | -2/Research | Lost 3 parts (2u1w) 14894 | -2/Research | Warped through subspace 14920 | -2/Research | Fired Sigix Terminator 14924 | -2/Research | Lost 4 parts (1p1n2w) 15042 | -2/Research | First assault squad dispatched 15114 | -2/Research | Local machine network offline 15160 | -2/Research | Lost 7 parts (1p1n5u) 15174 | -2/Research | Core integrity fell below 50% 15355 | -2/Research | Emitted hypermatrix ping 15358 | -2/Research | Assembled emerged from beneath the floor 15360 | -2/Research | Assembled emerged from beneath the floor 15409 | -2/Research | Lost 3 allies 15431 | -2/Research | Spotted B-90 Cyclops 15445 | -2/Research | Allies destroyed B-90 Cyclops 15647 | -2/Research | Assembled emerged from beneath the floor 15647 | -2/Research | Spotted B-90 Cyclops 15650 | -2/Research | Discovered new exit (range 6) 15657 | -2/Research | Allies destroyed B-90 Cyclops 15663 | -2/Research | Lost 3 allies 15685 | -2/Research | Identified exit to Testing 15708 | -2/Research | Entered Testing 15708 | -2/Testing | Accompanied by 11 allies 15770 | -2/Testing | Lost 7 allies 15838 | -2/Testing | Lost 4 allies 15907 | -2/Testing | Build established: Scavenger-Gunner 16140 | -2/Testing | Discovered new exit (range 11) 16157 | -2/Testing | Identified exit to Access 16240 | -2/Testing | Found Prototype Processor 16240 | -2/Testing | Identified Exp. Core Analyzer 16297 | -2/Testing | Spotted PH-S0NJ23G3G9 16331 | -2/Testing | Destroyed PH-S0NJ23G3G9 16353 | -2/Testing | Lost 3 parts (1n2u) 16434 | -2/Testing | System corruption reached 30% 16481 | -2/Testing | Lost 12 parts (1p10u1w) 16504 | -2/Testing | Found Prototype Device 16504 | -2/Testing | Identified Exp. Thermal Shield 16611 | -2/Testing | Found Prototype Hackware 16611 | -2/Testing | Identified System Mapper 16648 | -2/Testing | Local machine network offline 16668 | -2/Testing | Core integrity fell below 20% 16758 | -2/Testing | Spotted Fortress 16783 | -2/Testing | Build established: Scavenger-Gladiator 16818 | -2/Testing | Lost 3 parts (2u1w) 16835 | -2/Testing | Discovered new exit (range 5) 16835 | -2/Testing | Discovered new exit (range 6) 16844 | -2/Testing | Entered Section 7 16845 | -2/Section 7 | Detected hypermatrix surge 16845 | -2/Section 7 | Sensed 20 artifacts in vicinity 17131 | -2/Section 7 | Spotted S7 Guard 17187 | -2/Section 7 | Found Navigation Efficiency Matrix 17187 | -2/Section 7 | Installed Navigation Efficiency Matrix, process failed with unexpected side effects 17334 | -2/Section 7 | Found Integrated Reactor 17334 | -2/Section 7 | Installed Integrated Reactor, increased core energy generation (+10) 17478 | -2/Section 7 | Spotted Executioner 17481 | -2/Section 7 | Spotted Executioner 17528 | -2/Section 7 | Build established: Hacker-Gladiator 17559 | -2/Section 7 | Activated Sigix Exoskeleton 17559 | -2/Section 7 | Received instructions from Sigix Warrior 17560 | -2/Section 7 | Spotted Executioner 17562 | -2/Section 7 | Spotted Executioner 17566 | -2/Section 7 | Allies destroyed Executioner 17572 | -2/Section 7 | Destroyed Executioner 17664 | -2/Section 7 | Spotted B-99 Colossus 17690 | -2/Section 7 | Allies destroyed B-99 Colossus 17698 | -2/Section 7 | Local machine network offline 17719 | -2/Section 7 | Found Integrity Redistributor 17719 | -2/Section 7 | Used Integrity Redistributor, redistributed integrity to core (+223) 17740 | -2/Section 7 | Sigix Exoskeleton integrity reduced to 80% 17741 | -2/Section 7 | Spotted Executioner 17755 | -2/Section 7 | Destroyed Executioner 17791 | -2/Section 7 | Found Integrated Dissipator 17791 | -2/Section 7 | Installed Integrated Dissipator, increased core heat dissipation (+20) 17793 | -2/Section 7 | Found Integrated Dissipator 17793 | -2/Section 7 | Installed Integrated Dissipator, increased core heat dissipation (+20) 17799 | -2/Section 7 | Lost 5 parts (5u) 17822 | -2/Section 7 | Found LRC Energy Well 17822 | -2/Section 7 | Installed LRC Energy Well, increased energy storage capacity (+250) 17931 | -2/Section 7 | Sigix Exoskeleton integrity reduced to 60% 17992 | -2/Section 7 | Spotted Striker 18009 | -2/Section 7 | Sigix Exoskeleton integrity reduced to 40% 18009 | -2/Section 7 | Allies destroyed Striker 18026 | -2/Section 7 | Lost 3 parts (1p1u1w) 18073 | -2/Section 7 | Spotted Investigator 18142 | -2/Section 7 | Sigix Exoskeleton integrity reduced to 20% 18154 | -2/Section 7 | Spotted Striker 18159 | -2/Section 7 | Lost 8 parts (1n3u4w) 18160 | -2/Section 7 | Spotted Executioner 18165 | -2/Section 7 | Spotted Striker 18172 | -2/Section 7 | Spotted Investigator 18188 | -2/Section 7 | Allies destroyed Striker 18194 | -2/Section 7 | Spotted Executioner 18215 | -2/Section 7 | Destroyed by Striker with Plasma Lance Last Messages --------------- 18207_ M-36 Artificer repairs Executioner Prototype Device. 18210_ C-45 Heavy ARC bursts open, deploying its payload. 18210_ B-74 Champion unfolds itself. 18210_ L-61 Swordsman unfolds itself. 18210_ M-36 Artificer unfolds itself. 18212_ System corrupted: Matter fused (-7). 18212_ Imp. Core Shielding destroyed. 18212_ Penetrated by Slug. 18213_ C-45 Heavy ARC bursts open, deploying its payload. 18213_ G-73 Enforcer unfolds itself. 18213_ L-61 Swordsman unfolds itself. 18213_ G-73 Enforcer unfolds itself. 18213_ B-74 Champion unfolds itself. 18213_ E-15 Imp unfolds itself. 18213_ M-36 Artificer repairs P-80 Master. 18215_ Penetrated by Slug. 18215_ Hvy. Machine Gun destroyed. Map ----- +----------------------------------------------------+ | ??" " ???????? | | " " "" """"""""" ?????????? | | ? " ""???????" "??????????? | | """ "" "?"""""""" ""???????????" | | ""?? "?" """"""""""""" | | ??? """"" | | ?? "" " | | ?? """"" " " | | ????" = """ | | ?????" =%* " | | """"" ! %% | | % % | | " | | "%" | | [!! %=* """""""" " """"""""" | | ???"""" !%* [=%###"""""""""""""""""""""""""""""" | | ???"""" != %%=#?#""""""""""""""""""""""""""""""" | | ????##### ###%/#?################################ | | ????????# ???#/!#????????????????????????????????? | | ?????????????#[!#????????????????????????????????? | | ?????????????#%=#????????????????????????????????? | | ?????????????#%!#??################??????????????? | | ?????????????#%%#??#"""""" """"??????????????? | | ?????????????#[!#??#!""""" """""#?????????????? | | ?????????????#=!#??#=* m"" @ #?????????????? | | ??############*%####!=!"p@ """"#?????????????? | | ??#!=/=% =*![=!%hgbeggm=K """#?????????????? | | ??#=!%%%!=!%!p%Ell%b!lhg/ """"#?????????????? | | ??#%%###############mE!! """""#?????????????? | | ###/*#?????????????# %* #?????????????? | | =#//#####?????????#"!= #?????????????? | | "%"%=%%!"#?????????#"""""""" "" "#?????????????? | | !=!!=!|""#?????????######### # ####?????????????? | | !===%"""#?????????????????# ###????????????????? | | "|=//="""#?????????????????# #??????????????????? | | " ==="""#?????????????????# #??????????????????? | | " = ! """#?????????????????# #??????????????????? | | " """#??##############?# #??????????????????? | | """#?#"""""""""""""#?# #??????????????????? | | """#?#"" """" #?# #??????????????????? | | """"#?#"" """" #?# #??????????????????? | | ### #####?#"" """" ### #??????????????????? | | ??# #?????#"" """" #??????????????????? | | ??# #?????# #??????????????????? | | ??# #?????# ######??????????????????? | | ??# ####### """" ""#???????????????????????? | | ??# """" ""#???????????????????????? | | ??# """" ""#???????????????????????? | | ??##########" """" ""#???????????????????????? | | ???????????#"""T """"""""#???????????????????????? | +----------------------------------------------------+ Best States ------------- Heat Dissipation 122 Coolant Potential 65 Energy Generation 45 Energy Capacity 625 Matter Stores 300 Matter Capacity 300 Sight Range 16 Robot Scan Range 20 Terrain Scan Density 10 Jamming Range 16 Corruption Block 17 Armor Coverage 1350 Resistance: KI 20 Resistance: TH 50 Resistance: EX 20 Resistance: EM 20 Resistance: I 20 Resistance: S 20 Resistance: P 20 Core Shielding 30 Power Shielding 66 Propulsion Shielding 33 Utility Shielding 90 Melee Speed Boost 50 Phase Shifting 15 Evasion (%) 70 Targeting Accuracy 20 Melee Accuracy 8 Target Analysis 8 Core Analysis 8 Recoil Reduction 4 Salvage Targeting 3 Offensive Hacking 30 Defensive Hacking 28 Item Schematics ----------------- Adv. Kinecellerator | -2/Testing | Archive Lrn. Phase Cannon | -2/Testing | Archive Plasma Sword | -2/Testing | Archive Robot Schematics ------------------ None Fabricated ------------ Biometal Heavy Treads | x1 | -2/Research | Preloaded Repaired ---------- Nothing Studied --------- Hvy. Shield Leg | -2/Section 7 | Hacked Alien Tech Used ----------------- Integrated Reactor Phase Redirector Matter Drive Core Reset Matrix Subatomic Replicator Transdimensional Reconstructor Sigix Terminator Navigation Efficiency Matrix Integrity Redistributor Integrated Dissipator LRC Energy Well Achievements -------------- None Challenges ------------ None Game ------ Seed BladeJammingProtection Manual? 0 Play Time 02:57:28 Cumulative 334.7 hours Start 2026.08.24 @ 13:56:22 End 2026.08.24 @ 19:59:41 Sessions 9 Manual Loads 0 Difficulty Adventurer Special Mode None Game No. 104 Rogue 75 Adventurer 29 Explorer 0 Win Type - Total 19 Types 12/1/3/1/1/0/0/0/0/1 Lore% 78 Gallery% 68 Achievement% 62 Wizard Run 0 Options --------- Layout 1 ASCII 0 Keyboard 0 Movement Numpad Keybinds 1 Fullscreen 1 Font 24/Smallcaps Map View 50x35 Zoom Use 0% Tactical HUD 1 Map Filters NONE Filters NONE Steam 1 RUN: 457dac8c-1411-4640-8234-1ccb71f120d1